bitfinex-derivatives/quotes_ETHF0:USTF0_20251013
["timestamp","ask_amount","ask_price","bid_price","bid_amount"]
[1760313941418,0.7131,4138.0,4137.7,0.0021436]
[1760313941819,0.7131,4137.8,4137.7,0.0021436]
[1760313942018,3.15377219,4137.9,4137.7,0.4367536]
[1760313942328,0.00307067,4138.7,4138.2,1.21046]
[1760313942518,0.00307067,4138.7,4137.8,3.2078]
[1760313942519,0.00307067,4138.7,4138.6,0.43452]
[1760313942716,0.7131,4138.6,4138.3,0.43455]
[1760313943026,3.11714992,4138.5,4138.2,0.43455]
[1760313943220,3.11714992,4138.5,4138.3,0.43454]
[1760313943221,3.83024992,4138.5,4138.3,0.43454]
[1760313943417,0.00307067,4138.7,4138.1,0.7759]
[1760313943721,3.11714992,4138.6,4138.1,0.43456]
[1760313944131,3.11714992,4138.6,4138.3,0.43454]
[1760313944329,0.7158,4138.5,4138.3,0.43454]
[1760313944523,3.11714992,4138.6,4138.3,0.43454]
[1760313944828,0.7158,4138.6,4138.3,0.43454]
[1760313945029,0.00307067,4138.7,4138.3,0.43454]
[1760313945528,3.1115166,4138.6,4138.5,0.43453]
[1760313945729,3.1115166,4138.6,4138.3,0.43455]
[1760313946024,3.2078,4138.4,4137.7,0.0021436]
[1760313946223,3.2078,4138.4,4138.0,0.43458]
[1760313946418,0.7158,4138.3,4137.8,0.4346]
[1760313946624,3.64235,4138.4,4137.8,0.4346]
[1760313946820,0.00307067,4138.7,4138.6,0.43452]
[1760313947129,0.00307067,4138.7,4138.6,1.18422]
[1760313949222,3.15761683,4138.7,4138.2,0.43456]
[1760313949727,3.15761683,4138.7,4137.8,3.2078]
[1760313949728,0.7158,4138.6,4138.1,0.43456]
[1760313949928,0.7158,4138.6,4138.4,0.43454]
[1760313950420,0.7158,4138.6,4138.4,3.64234]
[1760313950815,0.00307067,4138.7,4138.5,0.43452]
[1760313951220,0.71887067,4138.7,4138.5,0.43452]
[1760313951418,0.7097,4138.5,4137.8,0.4346]
[1760313951731,0.7097,4137.8,4137.7,0.0021436]
[1760313951924,0.7097,4138.1,4137.8,0.4346]
[1760313952130,40.8,4137.9,4137.8,1.1653]
[1760313952927,1.14425,4138.4,4137.8,1.1653]
[1760313953125,0.7097,4138.2,4137.7,0.0021436]
[1760313953424,3.9175,4137.8,4137.7,0.0021436]
[1760313953728,7.02376757,4137.8,4137.7,0.0021436]
[1760313956330,47.82376757,4137.8,4137.7,0.0021436]
[1760313957635,41.5097,4137.8,4137.7,0.0021436]
[1760313957936,0.5602,4137.9,4137.8,1.1653]
[1760313958929,0.5602,4137.9,4137.7,0.0021436]
[1760313959130,0.7097,4137.8,4137.7,0.0021436]
[1760313959541,3.88053731,4137.8,4137.7,0.0021436]
[1760313960531,7.08833731,4137.8,4137.7,0.0021436]
[1760313960833,0.104,4137.5,4136.4,0.43474]
[1760313961133,0.104,4137.5,4136.2,3.2078]
[1760313961134,3.4995,4137.0,4136.2,3.2078]
[1760313961335,3.4995,4137.0,4135.6,0.43483]
[1760313961336,0.7076,4136.2,4135.6,0.43483]
[1760313961538,0.7076,4136.2,4135.1,0.7307]
[1760313961539,1.14238,4136.2,4135.1,0.7307]
[1760313961738,3.08132296,4136.1,4135.1,0.7307]
[1760313962040,3.64259,4136.0,4135.2,0.43487]
[1760313962240,0.7076,4135.7,4135.1,0.0019332]
[1760313962440,0.7076,4135.6,4135.1,0.0019332]
[1760313962642,0.7076,4135.5,4135.1,0.0019332]
[1760313962829,0.7076,4135.4,4135.1,0.0019332]
[1760313963137,0.7076,4135.4,4135.2,0.43488]
[1760313963138,0.7076,4135.3,4135.2,0.43488]
[1760313963539,3.82986899,4135.3,4135.2,0.43488]
[1760313963738,0.00179427,4135.7,4135.1,0.0019332]
[1760313963739,0.00179427,4135.7,4135.6,1.16553]
[1760313963940,0.70939427,4135.7,4135.6,0.43483]
[1760313964249,0.00179427,4135.7,4135.6,0.43483]
[1760313964438,0.00179427,4135.7,4135.6,1.16553]
[1760313965041,3.2078,4136.5,4136.4,0.43475]
[1760313965242,3.2078,4136.5,4136.4,1.16545]
[1760313965439,0.7076,4136.4,4136.3,0.43476]
[1760313965644,6.41065601,4136.5,4136.1,0.43478]
[1760313965943,0.7076,4136.3,4136.0,3.2078]
[1760313966147,0.43479,4136.1,4135.4,3.2078]
[1760313966337,0.7076,4135.9,4135.4,3.64265]
[1760313966536,0.7076,4135.9,4135.4,3.2078]
[1760313966843,3.3638,4135.5,4134.7,3.2078]
[1760313967041,0.7076,4135.2,4134.7,3.64272]
[1760313967340,3.8593483,4135.2,4135.0,0.43489]
[1760313968438,3.8593483,4135.2,4134.7,3.2078]
[1760313968439,3.8593483,4135.2,4134.8,0.43491]
[1760313968644,3.8593483,4135.2,4135.0,0.43489]
[1760313969140,3.1517483,4135.2,4135.0,0.43489]
[1760313969348,0.7076,4135.8,4134.7,3.2078]
[1760313969552,0.43484,4135.6,4134.7,3.2078]
[1760313969755,3.14261584,4135.4,4135.1,0.4368132]
[1760313969957,0.7076,4135.3,4135.1,0.4368132]
[1760313970354,3.91452373,4135.3,4135.1,0.4368132]
[1760313970553,3.2078,4135.5,4135.1,0.4368132]
[1760313970754,3.91452373,4135.2,4135.1,0.4368132]
[1760313970950,3.20692373,4135.4,4135.3,0.43487]
[1760313971152,0.7076,4135.3,4135.1,0.4368132]
[1760313971354,0.7076,4135.4,4135.3,0.43487]
[1760313971553,3.87355255,4135.4,4135.3,0.43487]
[1760313971853,0.7076,4135.4,4135.3,0.43487]
[1760313972055,3.80333445,4135.4,4135.3,0.43487]
[1760313972253,0.7076,4135.3,4135.1,0.0019332]
[1760313972452,3.53059445,4135.4,4135.1,0.0019332]
[1760313972655,3.80333445,4135.2,4135.1,0.0019332]
[1760313972854,0.7076,4135.2,4135.1,0.0019332]
[1760313973050,3.09573445,4135.3,4135.2,0.43488]
[1760313973250,4.4751,4135.5,4135.2,0.43487]
[1760313973452,3.16967841,4135.4,4135.2,0.43487]
[1760313973653,0.7076,4135.3,4135.2,0.43487]
[1760313973856,3.7675,4135.5,4135.4,0.43486]
[1760313974052,3.7675,4135.5,4135.4,1.16556]
[1760313974254,0.5597,4135.5,4135.4,1.16556]
[1760313974850,0.05600184,4135.5,4135.4,4.37336]
[1760313975755,3.21068342,4136.5,4135.4,3.9385]
[1760313975756,0.00288342,4136.5,4135.4,3.9385]
[1760313975956,0.6983,4137.4,4136.7,0.7307]
[1760313976159,0.6983,4137.4,4137.0,0.43468]
[1760313976457,0.43478,4136.2,4135.4,0.43486]
[1760313976659,3.2078,4136.0,4135.1,3.9404332]
[1760313976955,3.21081881,4136.0,4135.4,0.43485]
[1760313977258,3.91841881,4136.0,4135.2,0.7307]
[1760313977660,3.14139159,4135.9,4135.2,0.7307]
[1760313977855,3.21081881,4136.0,4135.9,0.4348]
[1760313978057,3.21081881,4136.0,4135.9,1.1655]
[1760313978558,3.21081881,4136.0,4135.9,0.4348]
[1760313978758,0.71061881,4136.0,4135.9,0.4348]
[1760313979055,3.2078,4136.7,4135.9,0.7307]
[1760313979254,3.2078,4136.7,4136.6,1.16543]
[1760313979459,0.6983,4137.4,4137.3,1.16536]
[1760313979460,3.9061,4137.4,4137.3,1.16536]
[1760313979656,0.6983,4137.4,4137.3,1.16536]
[1760313980153,0.70117459,4137.4,4137.3,1.16536]
[1760313980548,0.70117459,4137.4,4137.3,0.7307]
[1760313980754,0.7076,4137.3,4136.1,3.2078]
[1760313980959,3.2078,4136.9,4136.1,3.2078]
[1760313981253,3.14483038,4136.8,4136.1,3.2078]
[1760313981451,3.14483038,4136.8,4136.6,3.9385]
[1760313981754,0.6879,4136.7,4136.4,0.43475]
[1760313981945,0.43475,4136.5,4135.8,0.43481]
[1760313982150,0.6879,4136.3,4135.6,3.2078]
[1760313982550,3.17585569,4136.2,4135.1,3.2097332]
[1760313982746,0.43479,4136.1,4135.6,0.43483]
[1760313982953,0.6879,4136.0,4135.6,0.43483]
[1760313983154,0.6879,4135.9,4135.6,0.43483]
[1760313983460,3.09723773,4136.0,4135.6,0.43483]
[1760313983461,3.09723773,4135.8,4135.6,0.43483]
[1760313983650,0.6879,4135.6,4135.3,0.43486]
[1760313983858,0.6879,4135.6,4135.1,3.9458332]
[1760313983859,0.6879,4135.8,4135.5,0.43484]
[1760313984251,3.15170418,4135.7,4135.5,0.43484]
[1760313984448,3.2078,4136.4,4135.6,3.9439]
[1760313984654,0.43478,4136.2,4135.7,0.43482]
[1760313984852,3.15170418,4136.3,4135.8,0.43481]
[1760313985057,3.83960418,4136.3,4135.6,3.9439]
[1760313985349,0.6879,4136.2,4135.8,0.4348]
[1760313985553,3.15170418,4136.3,4136.0,0.43479]
[1760313985754,3.2078,4136.9,4136.3,0.7361]
[1760313985959,3.2078,4136.9,4136.6,0.43472]
[1760313986257,0.43478,4136.2,4135.7,1.17092]
[1760313986454,3.64255,4136.4,4135.2,0.7361]
[1760313986654,0.43478,4136.2,4135.6,0.43482]
[1760313986854,0.6879,4136.1,4135.9,0.4348]
[1760313987061,0.6879,4136.1,4135.2,0.7361]
[1760313987062,0.6879,4136.1,4135.7,0.43482]
[1760313987258,3.2078,4135.8,4135.7,0.43482]
[1760313987458,3.64256,4136.3,4135.8,0.4348]
[1760313987658,0.43478,4136.2,4135.8,0.4348]
[1760313987959,0.6879,4136.0,4135.8,0.4348]
[1760313988567,0.6589,4136.2,4136.0,0.43479]
[1760313989358,0.6589,4136.2,4136.1,0.7361]
[1760313989864,0.6589,4136.2,4136.1,3.9439]
[1760313990258,0.34348444,4136.2,4136.1,3.9439]
[1760313990561,0.9994,4136.3,4136.2,1.17087]
[1760313992161,0.9994,4136.3,4136.2,0.7361]
[1760313992364,0.9994,4136.3,4135.5,0.3023]
[1760313992365,4.2072,4136.3,4135.6,3.2078]
[1760313992562,0.9994,4136.3,4136.2,3.9439]
[1760313993260,0.64780459,4137.4,4137.3,1.17076]
[1760313993661,0.00287459,4137.4,4137.3,2.88402768]
[1760313993861,0.00287459,4137.4,4137.3,1.17076]
[1760313994760,0.43466,4137.3,4136.8,2.14797768]
[1760313994966,0.69077459,4137.4,4136.9,1.17079]
[1760313995463,0.69077459,4137.4,4137.0,0.43468]
[1760313995668,0.69077459,4137.4,4136.5,5.22336768]
[1760313995669,0.00287459,4137.4,4137.1,3.9439]
[1760313995867,0.00287459,4137.4,4137.1,3.2078]
[1760313996062,0.00287459,4137.4,4137.2,1.17076]
[1760313997562,0.00287459,4137.4,4136.7,0.43471]
[1760313997563,0.43467,4137.2,4136.7,0.43471]
[1760313997962,0.6879,4137.1,4136.7,0.43471]
[1760313998364,6.35699808,4137.0,4136.4,0.7361]
[1760313998564,6.35699808,4137.0,4136.0,3.5101]
[1760313998565,0.6879,4136.9,4136.0,4.92106768]
[1760313998769,0.6879,4136.9,4136.0,3.2078]
[1760313999069,3.14919808,4136.8,4136.0,3.2078]
[1760313999361,0.6879,4135.9,4135.0,1.71326768]
[1760313999566,0.156,4136.0,4134.6,2.44936768]
[1760313999567,0.6879,4135.3,4134.6,2.44936768]
[1760313999866,3.77978361,4135.2,4134.6,0.7361]
[1760314000071,3.77978361,4135.2,4134.6,0.43494]
[1760314000267,3.77978361,4135.2,4134.7,0.43492]
[1760314001168,3.77978361,4135.2,4134.5,0.43495]
[1760314001372,3.77978361,4135.2,4134.3,1.71326768]
[1760314001373,3.77978361,4135.2,4134.7,0.43492]
[1760314002063,3.77978361,4135.2,4135.0,0.43489]
[1760314002263,0.6438,4136.8,4135.0,0.43489]
[1760314002264,3.2078,4136.1,4135.0,1.0384]
[1760314002463,3.2078,4136.1,4135.5,0.7361]
[1760314002664,3.2078,4136.1,4136.0,1.0384]
[1760314002869,3.2078,4136.1,4135.9,0.4348]
[1760314003163,6.31697833,4136.1,4135.1,1.71520088]
[1760314003368,3.2078,4135.6,4135.1,0.0019332]
[1760314003570,0.6879,4135.2,4135.1,0.0019332]
[1760314003770,3.79707833,4135.5,4135.1,0.0019332]
[1760314003964,3.64264,4135.6,4135.1,0.4368132]
[1760314004163,3.19957021,4135.4,4135.2,0.7056]
[1760314004571,0.6797,4135.3,4135.1,0.0019332]
[1760314004772,3.63444021,4135.3,4135.1,0.0019332]
[1760314005065,3.2078,4135.6,4135.1,0.0019332]
[1760314005066,0.6797,4135.2,4135.1,0.0019332]
[1760314005569,3.86657685,4135.2,4135.1,0.0019332]
[1760314005769,0.6797,4135.2,4135.1,0.0019332]
[1760314006572,3.79881078,4135.2,4135.1,0.0019332]
[1760314008067,0.6797,4134.5,4133.8,2.14828768]
[1760314008274,3.2078,4134.3,4133.6,1.71326768]
[1760314008675,3.11029299,4134.2,4133.7,0.43503]
[1760314008975,0.6797,4134.1,4133.8,0.43502]
[1760314009175,0.6797,4134.1,4133.5,4.92106768]
[1760314009176,0.6797,4134.1,4133.9,0.435]
[1760314009476,0.6797,4134.1,4133.7,0.43503]
[1760314009671,0.6797,4134.1,4133.8,0.43502]
[1760314009976,0.6797,4134.1,4133.9,0.43501]
[1760314010173,0.00243733,4134.2,4133.6,0.00262347]
[1760314010379,0.00243733,4134.2,4134.1,4.34839]
[1760314010573,0.00243733,4134.2,4134.1,6.06165768]
[1760314011071,0.00243733,4134.2,4134.1,4.34839]
[1760314011468,0.00243733,4134.2,4134.1,4.32839]
[1760314011971,0.00243733,4134.2,4134.1,6.04165768]
[1760314012165,7.33e-06,4134.2,4134.1,6.04165768]
[1760314012371,3.2078,4136.1,4135.9,0.4348]
[1760314012567,3.2078,4136.1,4136.0,0.9656]
[1760314012772,3.2078,4136.1,4136.0,0.6856]
[1760314013078,3.8816,4136.7,4136.0,0.9656]
[1760314013279,3.21071779,4136.7,4136.5,0.43473]
[1760314013469,3.21071779,4136.7,4136.5,1.12210276]
[1760314013876,3.21071779,4136.7,4136.5,0.43650276]
[1760314014078,0.00291779,4136.7,4136.5,0.43650276]
[1760314014381,0.00291779,4136.7,4136.6,0.6856]
[1760314014877,0.00291779,4136.7,4136.5,0.43650276]
[1760314016486,0.00291779,4136.7,4136.5,1.12210276]
[1760314016781,0.00291779,4136.7,4136.6,0.6856]
[1760314018273,0.00291779,4136.7,4136.5,1.12210276]
[1760314018574,0.00291779,4136.7,4136.6,0.6856]
[1760314020770,0.00291779,4136.7,4136.5,0.43650276]
[1760314020975,0.00291779,4136.7,4136.5,1.12210276]
[1760314021175,0.00291779,4136.7,4136.6,0.6856]
[1760314021572,0.6738,4136.6,4136.5,0.00177276]
[1760314021878,0.1363,4136.5,4135.3,3.2078]
[1760314022186,3.64257,4136.3,4135.6,0.43483]
[1760314022377,0.43478,4136.2,4135.6,0.43483]
[1760314022577,3.20958669,4136.2,4135.8,0.6856]
[1760314022879,0.6738,4136.1,4135.8,0.00174266]
[1760314023076,0.6738,4136.1,4135.8,0.43655266]
[1760314023378,3.20093755,4136.0,4135.8,0.43655266]
[1760314023573,0.6738,4135.9,4135.8,0.00174266]
[1760314025181,3.2078,4136.3,4135.8,3.20954266]
[1760314025376,3.2078,4136.3,4136.2,1.12037]
[1760314025980,0.6738,4136.2,4135.8,3.20954266]
[1760314026481,0.6738,4135.9,4135.8,0.00174266]
[1760314026680,3.18196802,4136.1,4135.9,0.4348]
[1760314026888,3.2078,4136.3,4136.2,1.12037]
[1760314027283,3.2078,4136.9,4136.5,0.43474]
[1760314027478,1.0141,4136.6,4136.5,0.43474]
[1760314027681,1.0141,4136.6,4136.2,0.6856]
[1760314027682,1.0141,4136.6,4136.3,0.43476]
[1760314027982,3.55047118,4136.6,4135.8,3.20954266]
[1760314028287,4.22427118,4136.6,4136.4,0.43475]
[1760314028486,4.22427118,4136.6,4135.9,0.6856]
[1760314028487,0.43476,4136.4,4136.0,0.43479]
[1760314028780,0.4348,4136.0,4135.8,0.00174266]
[1760314028973,3.8816,4135.9,4135.8,0.00174266]
[1760314029179,7.08984962,4135.9,4135.3,3.2078]
[1760314029480,7.08984962,4135.9,4135.0,1.71081385]
[1760314029481,3.8816,4135.4,4134.7,3.2078]
[1760314029681,4.31646,4135.4,4134.7,3.2078]
[1760314029881,3.20824962,4135.3,4134.7,3.2078]
[1760314030179,0.6738,4135.2,4134.7,3.21087136]
[1760314030374,3.8816,4135.9,4135.4,0.43485]
[1760314030577,3.8816,4135.9,4134.8,0.43491]
[1760314030578,0.6738,4135.8,4134.8,0.43491]
[1760314030788,3.74955276,4135.4,4134.7,3.21087136]
[1760314030985,3.74955276,4135.4,4134.7,0.00307136]
[1760314030986,3.8816,4135.4,4134.7,0.00307136]
[1760314031188,3.12253685,4135.3,4134.7,0.00307136]
[1760314031377,3.12253685,4135.3,4134.7,0.43799136]
[1760314031582,3.12253685,4135.3,4134.9,0.4349]
[1760314031776,3.55740685,4135.3,4134.9,0.4349]
[1760314031982,3.55740685,4135.3,4135.0,0.43489]
[1760314031983,0.6738,4135.2,4135.0,0.43489]
[1760314032388,41.4738,4135.8,4135.0,0.28]
[1760314032680,41.4738,4135.8,4135.4,0.43485]
[1760314032681,3.14595842,4135.7,4135.4,0.43485]
[1760314032989,3.2078,4136.0,4135.9,0.4348]
[1760314033380,3.2078,4136.5,4136.1,0.6856]
[1760314033587,0.6738,4136.4,4136.1,0.43478]
[1760314033782,0.6738,4136.4,4135.8,3.2078]
[1760314033783,3.8410072,4136.4,4135.8,3.2078]
[1760314033977,3.1672072,4136.4,4136.0,0.43479]
[1760314034282,0.43481,4135.9,4135.4,0.43485]
[1760314034484,0.6738,4135.8,4135.5,0.43484]
[1760314034685,0.6738,4135.7,4135.5,0.43484]
[1760314034988,3.2078,4136.9,4136.5,0.43474]
[1760314035183,3.2078,4136.9,4136.5,1.40034]
[1760314035581,3.2078,4137.4,4136.5,1.40034]
[1760314035890,41.23461,4137.8,4136.5,3.11992029]
[1760314035891,0.33485137,4136.6,4136.5,3.11992029]
[1760314036080,0.6738,4137.8,4136.6,0.6856]
[1760314036684,0.6738,4137.3,4136.6,0.6856]
[1760314036993,3.8816,4137.9,4136.6,0.6856]
[1760314037186,4.3162,4137.9,4136.6,0.6856]
[1760314037378,0.43461,4137.8,4136.6,0.6856]
[1760314037579,3.8816,4137.9,4136.6,0.6856]
[1760314037580,0.6738,4137.4,4136.6,0.6856]
[1760314037793,0.43461,4137.8,4136.6,2.40260447]
[1760314037999,0.43462,4137.7,4136.6,0.6856]
[1760314038189,0.6738,4137.6,4136.6,2.40260447]
[1760314039192,0.6738,4137.6,4136.6,0.6856]
[1760314039488,0.6738,4137.6,4136.6,2.40340553]
[1760314039688,0.6738,4136.6,4136.3,2.15256553]
[1760314039886,0.6738,4136.6,4136.2,3.2078]
[1760314040091,3.60288316,4136.5,4136.2,3.2078]
[1760314040387,1.10856,4136.4,4136.2,3.2078]
[1760314040598,3.84194316,4136.5,4136.2,3.64257]
[1760314040790,44.01071779,4136.7,4135.8,0.43481]
[1760314040791,0.6738,4136.2,4135.8,0.43481]
[1760314041295,0.6738,4136.2,4135.6,4.92560553]
[1760314041296,3.10087247,4136.1,4135.7,1.71780553]
[1760314041695,45.01851779,4136.7,4135.7,1.71780553]
[1760314041696,3.1905434,4136.2,4135.7,1.71780553]
[1760314041885,0.43475,4136.5,4136.0,0.43479]
[1760314042195,0.33691779,4136.7,4136.5,0.9792]
[1760314042384,0.33691779,4136.7,4136.6,0.6875]
[1760314042584,7.79e-06,4136.8,4136.7,0.43472]
[1760314042791,3.2078,4138.5,4138.3,0.43455]
[1760314043199,3.2078,4138.5,4138.3,1.12205]
[1760314043590,3.2078,4138.5,4138.4,0.43453]
[1760314043591,0.00186056,4138.5,4138.4,0.43453]
[1760314043786,0.00186056,4138.5,4138.4,1.12203]
[1760314043993,0.00186056,4138.5,4138.3,0.003009]
[1760314044195,0.00186056,4138.5,4138.4,0.6875]
[1760314047799,0.00186056,4138.5,4138.4,2.39736962]
[1760314047999,0.00186056,4138.5,4138.4,0.6875]
[1760314048496,44.0078,4140.0,4139.6,0.6875]
[1760314048700,3.2078,4140.0,4139.7,0.6875]
[1760314048898,3.2078,4140.5,4140.0,0.43437]
[1760314049109,40.8,4140.8,4140.1,1.12185]
[1760314049402,3.17721177,4140.6,4139.8,0.43439]
[1760314049604,3.17721177,4140.6,4140.3,0.43433]
[1760314049805,3.18013757,4140.8,4140.2,3.2078]
[1760314049806,0.0029258,4140.8,4140.2,3.2078]
[1760314049992,0.43433,4140.5,4140.0,0.43437]
[1760314050197,1.08493,4140.5,4140.1,0.6875]
[1760314050607,1.08493,4140.5,4140.0,1.12187]
[1760314050809,1.08493,4140.5,4139.4,3.2078]
[1760314050810,0.6506,4139.8,4139.4,3.64223]
[1760314051109,3.64222,4139.6,4138.8,3.64229]
[1760314051305,3.2078,4139.6,4139.2,0.43445]
[1760314051505,3.2078,4139.6,4139.3,0.6875]
[1760314051707,0.6506,4140.2,4139.4,3.64224]
[1760314051899,0.6506,4140.2,4139.5,0.6875]
[1760314052107,0.43439,4139.9,4139.2,0.43445]
[1760314052420,3.06985138,4139.8,4139.0,0.9792]
[1760314052604,3.50425138,4139.8,4139.2,0.43445]
[1760314052910,6.71205138,4139.8,4139.2,0.43445]
[1760314053309,0.43441,4139.7,4139.2,0.43445]
[1760314053513,0.6506,4139.7,4139.0,0.6875]
[1760314053711,0.43442,4139.6,4139.0,1.41367]
[1760314054309,0.43442,4139.6,4139.1,0.43446]
[1760314054509,0.6506,4139.7,4139.0,0.9792]
[1760314054510,3.2078,4139.8,4139.6,0.4344]
[1760314054813,1.19677,4141.5,4139.5,0.2917]
[1760314054814,3.2078,4140.4,4140.0,0.72606]
[1760314055013,3.2078,4140.4,4140.1,0.6875]
[1760314055416,3.2078,4140.4,4140.1,1.12186]
[1760314055615,3.2078,4140.4,4140.1,0.6875]
[1760314055814,3.2078,4140.4,4140.3,0.6875]
[1760314056116,0.0029258,4140.8,4140.2,1.12184]
[1760314056313,40.8029258,4140.8,4140.2,1.12184]
[1760314056510,0.7486,4140.5,4139.6,0.6875]
[1760314056717,3.2078,4140.4,4139.6,0.6875]
[1760314056914,6.37819461,4140.4,4139.6,0.6875]
[1760314057112,0.43437,4140.1,4139.7,0.6875]
[1760314057313,0.43438,4140.0,4139.7,0.6875]
[1760314057518,1.08498,4140.0,4139.7,0.6875]
[1760314057723,6.37819461,4140.4,4139.6,0.6875]
[1760314058016,3.2078,4140.4,4139.8,0.43438]
[1760314058217,3.12689266,4140.3,4139.8,0.43438]
[1760314058419,0.6506,4140.2,4139.8,1.12188]
[1760314058815,0.43436,4140.2,4139.8,0.43438]
[1760314059020,1.08498,4140.0,4139.2,0.6875]
[1760314059222,1.08498,4140.0,4139.5,1.12192]
[1760314059419,1.08498,4140.0,4139.6,1.12191]
[1760314059613,3.2078,4140.4,4139.0,3.4995]
[1760314059614,0.43436,4140.2,4139.5,3.4995]
[1760314059819,3.64214,4140.4,4139.9,0.43438]
[1760314060023,3.60306162,4140.3,4140.0,0.6875]
[1760314060618,0.43436,4140.2,4140.0,0.6875]
[1760314060918,0.43437,4140.1,4139.8,1.12189]
[1760314061217,3.2078,4139.9,4139.0,3.2078]
[1760314061424,0.6506,4139.1,4138.9,0.43448]
[1760314061719,0.6506,4139.1,4138.5,3.4995]
[1760314061720,0.43445,4139.3,4139.0,0.6875]
[1760314061921,0.43446,4139.2,4139.0,0.6875]
[1760314063623,4.29284,4139.4,4139.0,1.12197]
[1760314063923,3.2078,4139.4,4139.2,0.43446]
[1760314064127,3.2078,4139.4,4139.0,0.2799]
[1760314064128,3.2078,4140.0,4139.9,0.7361]
[1760314064626,3.2078,4140.0,4139.8,0.43438]
[1760314064627,3.13595611,4140.4,4140.3,0.7361]
[1760314064814,0.43431,4140.6,4140.3,0.7361]
[1760314065019,3.2078,4140.7,4139.5,1.016]
[1760314065020,0.6396,4140.2,4139.5,1.016]
[1760314065220,1.07396,4140.2,4139.8,0.43439]
[1760314065422,1.07396,4140.2,4139.9,0.7361]
[1760314065722,0.43434,4140.4,4140.1,0.7361]
[1760314065921,0.43434,4140.4,4140.0,0.43437]
[1760314066126,3.2078,4140.2,4139.4,0.7361]
[1760314066328,3.2078,4139.6,4139.3,0.43444]
[1760314066625,0.43441,4139.7,4139.5,0.7361]
[1760314066828,3.2078,4140.1,4139.5,1.016]
[1760314067021,0.0029258,4140.8,4139.5,1.016]
[1760314067022,3.2078,4140.7,4140.1,0.7361]
[1760314067227,3.64211,4140.7,4140.3,0.43434]
[1760314067425,3.64211,4140.7,4140.1,0.7361]
[1760314067426,0.43431,4140.6,4140.1,0.43436]
[1760314067727,1.07391,4140.6,4140.2,1.17045]
[1760314067921,1.07391,4140.6,4140.3,0.7361]
[1760314068225,3.2078,4140.7,4140.1,0.7361]
[1760314068426,3.2078,4140.7,4140.6,0.7361]
[1760314069423,0.0029258,4140.8,4140.6,1.1704]
[1760314069624,0.0029258,4140.8,4140.7,0.7361]
[1760314072026,40.8,4142.2,4140.8,1.08572]
[1760314072226,3.2078,4142.3,4142.1,0.7069]
[1760314072426,3.2078,4142.3,4142.0,0.43416]
[1760314072625,3.2078,4142.3,4142.1,0.7069]
[1760314072824,3.2078,4142.3,4141.5,4.2039]
[1760314073025,3.2078,4141.8,4141.5,1.14352687]
[1760314073229,3.2078,4141.8,4141.6,0.7069]
[1760314073636,0.43415,4142.2,4141.7,0.7069]
[1760314073836,0.43415,4142.2,4141.6,0.4342]
[1760314074022,3.18876273,4142.0,4141.7,0.43419]
[1760314074227,3.18876273,4142.0,4141.8,0.7069]
[1760314074738,0.43417,4142.0,4141.7,0.7069]
[1760314075134,0.43417,4142.0,4141.6,0.4342]
[1760314075432,0.43417,4142.0,4141.5,3.49941687]
[1760314075433,0.43415,4142.2,4141.8,1.14108]
[1760314075633,0.43415,4142.2,4141.9,0.7069]
[1760314076034,1.06805,4142.2,4141.9,0.7069]
[1760314076435,0.43416,4142.1,4141.9,0.7069]
[1760314076635,1.06807,4142.0,4141.8,0.43418]
[1760314076829,0.4342,4141.7,4141.5,0.29161687]
[1760314077127,1.0681,4141.7,4141.5,0.43662687]
[1760314077333,3.2078,4141.8,4141.7,0.7069]
[1760314078128,3.64199,4141.8,4141.5,0.70931687]
[1760314078328,4.27589,4141.8,4141.5,0.70931687]
[1760314078523,4.27589,4141.8,4140.3,1.08584]
[1760314078524,0.6315,4141.4,4140.4,3.2078]
[1760314078728,0.6315,4141.4,4140.3,0.43433]
[1760314078729,3.2078,4140.7,4140.3,1.14124]
[1760314078930,3.2078,4140.7,4140.5,0.7069]
[1760314079124,3.2078,4140.7,4140.4,0.43433]
[1760314079324,1.06582,4140.6,4140.4,0.43433]
[1760314079527,1.06582,4140.6,4140.4,0.43710477]
[1760314079729,0.6315,4140.5,4140.4,0.00277477]
[1760314079934,3.81522015,4140.5,4140.4,0.00277477]
[1760314080128,0.43432,4140.6,4140.4,0.70967477]
[1760314080333,0.43432,4140.6,4140.4,0.00277477]
[1760314080631,1.06582,4140.6,4140.4,0.00277477]
[1760314081131,3.2078,4140.7,4140.6,0.7069]
[1760314081336,40.8,4141.4,4141.1,0.43425]
[1760314082136,3.2078,4141.8,4141.2,0.7069]
[1760314082533,0.6315,4141.9,4141.2,0.7069]
[1760314082534,3.2078,4141.3,4141.2,0.7069]
[1760314082833,0.43423,4141.4,4140.5,0.2892]
[1760314082834,0.43423,4141.4,4141.1,0.43425]
[1760314083038,1.06573,4141.4,4141.1,0.43425]
[1760314083335,0.43423,4141.4,4141.1,1.14115]
[1760314083932,44.6393,4141.8,4140.4,0.00277477]
[1760314083933,0.6315,4141.2,4140.4,0.00277477]
[1760314084126,0.43428,4140.9,4140.4,0.00277477]
[1760314084333,0.43428,4140.9,4140.5,0.7069]
[1760314084334,0.6315,4140.9,4140.5,0.7069]
[1760314084634,4.2934,4141.3,4140.4,0.00277477]
[1760314084635,0.6315,4140.5,4140.4,0.00277477]
[1760314086241,0.00203417,4142.3,4140.4,0.00277477]
[1760314086242,3.8393,4141.1,4140.4,0.00277477]
[1760314086541,0.6315,4140.6,4140.4,0.00277477]
[1760314087042,0.6315,4140.5,4140.4,0.00277477]
[1760314087240,3.83576474,4140.5,4140.4,0.00277477]
[1760314087642,3.20426474,4140.5,4140.4,0.00277477]
[1760314088338,3.83576474,4140.5,4140.4,0.00277477]
[1760314089342,3.20426474,4140.5,4140.4,1.14400477]
[1760314089541,3.2078,4141.1,4140.5,0.9961]
[1760314089744,0.6315,4141.6,4140.5,0.9961]
[1760314089745,1.06571,4141.6,4141.1,0.43426]